bitfinex-derivatives/quotes_SOLF0:USTF0_20250817
["timestamp","ask_amount","ask_price","bid_price","bid_amount"]
[1755463114121,11.44764163,191.8,191.79,2.92596092]
[1755463116927,11.44927402,191.8,191.79,2.92596092]
[1755463117431,11.44929375,191.8,191.79,2.92596092]
[1755463126037,6.71473403,191.8,191.79,2.92596092]
[1755463126244,11.4491857,191.8,191.79,2.92596092]
[1755463129841,8.5691857,191.8,191.79,2.92596092]
[1755463131148,11.5091857,191.8,191.79,2.92596092]
[1755463134654,8.5691857,191.8,191.79,2.92596092]
[1755463134852,11.5091857,191.8,191.79,2.92596092]
[1755463135246,11.50878149,191.8,191.79,2.92596092]
[1755463135555,11.5087497,191.8,191.79,2.92596092]
[1755463135853,6.77473403,191.8,191.79,2.92596092]
[1755463136053,8.57878509,191.8,191.79,2.92596092]
[1755463138857,11.51878509,191.8,191.79,2.92596092]
[1755463140953,6.77473403,191.8,191.79,2.92596092]
[1755463141151,11.519401,191.8,191.79,2.92596092]
[1755463141461,8.579401,191.8,191.79,2.92596092]
[1755463143360,3.83473403,191.8,191.79,2.92596092]
[1755463143566,8.58076729,191.8,191.79,2.92596092]
[1755463143958,3.83473403,191.8,191.79,2.92596092]
[1755463144263,11.52076729,191.8,191.79,2.92596092]
[1755463150460,11.52076729,191.8,191.79,0.03596092]
[1755463150768,2.94,191.79,191.73,2.91]
[1755463151069,1.7040752,191.74,191.73,2.91]
[1755463151256,137.00484249,191.74,191.73,2.91]
[1755463151667,139.94484249,191.74,191.73,2.91]
[1755463152155,8.58076729,191.74,191.73,2.91]
[1755463152352,135.30076729,191.74,191.73,2.91]
[1755463152565,130.55473403,191.74,191.73,2.91]
[1755463152765,135.29842886,191.74,191.73,2.91]
[1755463153471,138.23842886,191.74,191.73,2.91]
[1755463153661,138.23842886,191.74,191.72,2.91]
[1755463153962,13.22250406,191.73,191.72,2.91]
[1755463154266,139.94250406,191.73,191.72,2.91]
[1755463154567,8.57842886,191.73,191.72,2.91]
[1755463154768,135.29842886,191.73,191.72,2.91]
[1755463155863,135.29487209,191.73,191.72,2.91]
[1755463156360,8.57487209,191.73,191.72,2.91]
[1755463156562,135.29487209,191.73,191.72,2.91]
[1755463161873,130.55473403,191.73,191.72,2.91]
[1755463162074,135.29074741,191.73,191.72,2.91]
[1755463162376,8.57040652,191.73,191.72,2.91]
[1755463162575,0.03735608,191.75,191.72,3.43]
[1755463162773,0.03735608,191.75,191.74,1.7040752]
[1755463163073,0.03735608,191.75,191.74,4.6840752]
[1755463177086,0.03735608,191.75,191.74,2.98]
[1755463177282,2.80735608,191.75,191.74,4.6840752]
[1755463181287,0.03735608,191.75,191.74,4.6840752]
[1755463181989,0.03735608,191.75,191.74,1.7040752]
[1755463182195,2.80735608,191.75,191.69,2.98]
[1755463182394,2.80735608,191.75,191.69,4.6840752]
[1755463182694,2.77,191.73,191.7,2.98]
[1755463183487,2.77,191.73,191.71,2.98]
[1755463187798,3.02,191.72,191.69,1.7040752]
[1755463187998,3.02,191.72,191.7,2.96]
[1755463188498,3.02,191.72,191.71,2.96]
[1755463195398,0.03735608,191.75,191.71,4.6640752]
[1755463195698,0.03735608,191.75,191.73,4.6640752]
[1755463195896,0.03735608,191.75,191.74,2.96]
[1755463198506,3.05735608,191.75,191.74,2.96]
[1755463199610,0.03735608,191.75,191.74,2.96]
[1755463201813,3.05735608,191.75,191.74,2.96]
[1755463203118,0.03735608,191.75,191.74,2.96]
[1755463203313,3.05735608,191.75,191.74,2.96]
[1755463207711,0.03735608,191.75,191.74,2.96]
[1755463211617,0.03735608,191.75,191.74,8.1721]
[1755463212917,3.02,191.79,191.75,2.96]
[1755463213214,5.86222357,191.86,191.79,2.96]
[1755463213215,1.7040752,191.86,191.79,2.96]
[1755463213414,1.7040752,191.86,191.73,0.03518311]
[1755463213415,3.02,191.84,191.8,4.6640752]
[1755463213614,3.02,191.82,191.8,1.7040752]
[1755463213820,11.54970522,191.81,191.8,1.7040752]
[1755463216022,3.02,191.8,191.79,1.74198397]
[1755463216227,7.74054121,191.8,191.79,1.74198397]
[1755463216925,3.02,191.8,191.79,1.74198397]
[1755463217113,7.73992196,191.8,191.79,1.74198397]
[1755463217925,7.73992196,191.8,191.79,4.71198397]
[1755463218824,4.71992196,191.8,191.79,4.71198397]
[1755463219216,2.86,191.83,191.79,4.71198397]
[1755463219414,2.86,191.83,191.82,4.6740752]
[1755463220118,6.6629897,191.83,191.82,4.6740752]
[1755463220823,2.86,191.83,191.82,4.6740752]
[1755463231430,2.86,191.83,191.82,2.97]
[1755463233131,2.86,191.83,191.81,1.7040752]
[1755463234530,2.86,191.83,191.81,4.6740752]
[1755463235229,2.86,191.83,191.82,2.97]
[1755463235430,7.45706156,191.83,191.82,2.97]
[1755463235621,11.24510782,191.83,191.82,2.97]
[1755463237433,11.24692867,191.83,191.82,2.97]
[1755463238329,7.45888241,191.83,191.82,2.97]
[1755463238634,2.86,191.83,191.82,2.97]
[1755463239637,2.86,191.83,191.81,1.7040752]
[1755463240135,2.86,191.83,191.82,2.97]
[1755463240334,6.65080576,191.83,191.82,2.97]
[1755463240534,11.25224966,191.83,191.82,2.97]
[1755463243334,11.25369344,191.83,191.82,2.97]
[1755463243537,6.65080576,191.83,191.82,2.97]
[1755463243737,11.25378234,191.83,191.82,2.97]
[1755463244136,3.79080576,191.83,191.82,2.97]
[1755463244332,4.60297658,191.83,191.82,2.97]
[1755463244532,8.3943351,191.83,191.82,2.97]
[1755463247039,8.39526718,191.83,191.82,2.97]
[1755463248036,2.81,191.83,191.82,2.97]
[1755463248237,2.81,191.89,191.82,2.97]
[1755463248433,2.81,191.87,191.84,2.88]
[1755463248743,2.81,191.85,191.83,1.7040752]
[1755463248945,2.81,191.85,191.84,0.03638273]
[1755463249246,3.79439027,191.85,191.84,2.91638273]
[1755463249541,6.60439027,191.85,191.84,2.91638273]
[1755463249848,11.20931172,191.85,191.84,2.91638273]
[1755463252847,6.60439027,191.85,191.84,2.91638273]
[1755463253046,11.21177327,191.85,191.84,2.91638273]
[1755463253346,6.60439027,191.85,191.84,2.91638273]
[1755463253547,11.21247022,191.85,191.84,2.91638273]
[1755463261454,11.21148984,191.85,191.84,2.91638273]
[1755463261847,6.60439027,191.85,191.84,2.91638273]
[1755463262053,11.21144266,191.85,191.84,2.91638273]
[1755463265556,11.21396767,191.85,191.84,2.91638273]
[1755463268461,11.21396767,191.85,191.84,0.03638273]
[1755463268658,11.21396767,191.85,191.84,2.91638273]
[1755463268856,11.21396767,191.85,191.84,0.03638273]
[1755463269056,11.21396767,191.85,191.84,2.91638273]
[1755463270759,11.21448843,191.85,191.84,2.91638273]
[1755463279669,11.21375894,191.85,191.84,2.91638273]
[1755463280071,6.60691528,191.85,191.84,2.91638273]
[1755463280270,11.21375894,191.85,191.84,2.91638273]
[1755463280470,11.21409058,191.85,191.84,2.91638273]
[1755463286766,6.60691528,191.85,191.84,2.91638273]
[1755463286967,11.20944528,191.85,191.84,2.91638273]
[1755463288978,6.60691528,191.85,191.84,2.91638273]
[1755463289179,11.20983914,191.85,191.84,2.91638273]
[1755463289679,11.21011195,191.85,191.84,2.91638273]
[1755463292382,11.21112108,191.85,191.84,2.91638273]
[1755463298483,11.21114296,191.85,191.84,2.91638273]
[1755463298987,11.21137103,191.85,191.84,2.91638273]
[1755463301488,11.21129596,191.85,191.84,2.91638273]
[1755463307491,6.60691528,191.85,191.84,2.91638273]
[1755463307693,11.21186884,191.85,191.84,2.91638273]
[1755463308289,4.60495356,191.85,191.84,0.03638273]
[1755463308488,2.97,191.92,191.85,2.82]
[1755463308790,3.79885025,191.91,191.9,4.5240752]
[1755463310894,2.97,191.92,191.9,4.5240752]
[1755463311097,2.97,191.92,191.91,2.82]
[1755463311797,6.76243933,191.92,191.91,2.82]
[1755463313298,2.97,191.92,191.91,2.82]
[1755463315401,2.97,191.94,191.91,2.82]
[1755463315695,2.97,191.95,191.93,1.7040752]
[1755463315902,129.29,192.0,191.94,2.82]
[1755463316091,2.97,191.98,191.97,1.7040752]
[1755463316297,3.78466132,191.98,191.97,1.7040752]
[1755463316595,3.78466132,191.98,191.97,4.5240752]
[1755463317190,2.97,191.99,191.97,4.5240752]
[1755463317395,2.97,191.99,191.98,2.82]
[1755463317593,2.97,192.02,191.98,2.82]
[1755463317799,2.97,192.02,191.99,1.7040752]
[1755463318001,2.97,192.02,192.0,2.82]
[1755463318198,126.3,192.04,192.01,1.7040752]
[1755463318400,2.97,192.03,192.0,2.82]
[1755463318601,2.97,192.03,191.98,2.82]
[1755463319808,4.6740752,192.03,191.98,2.82]
[1755463320108,2.97,192.0,191.95,4.5240752]
[1755463320307,2.97,192.0,191.95,1.7040752]
[1755463320496,2.97,192.0,191.96,2.82]
[1755463320897,2.97,192.0,191.97,2.82]
[1755463321897,2.97,192.0,191.96,2.82]
[1755463323412,2.97,192.0,191.98,2.82]
[1755463323617,2.97,192.04,192.0,2.82]
[1755463323808,2.97,192.03,192.0,2.82]
[1755463324509,2.97,192.03,192.01,2.82]
[1755463325416,2.97,192.03,191.99,1.7040752]
[1755463325610,2.97,192.03,192.0,2.82]
[1755463326615,2.97,192.03,192.01,2.82]
[1755463331715,2.97,192.03,192.02,2.82]
[1755463333618,2.97,192.03,192.01,2.82]
[1755463335618,2.97,192.03,191.96,2.65706506]
[1755463335814,2.97,192.03,191.97,2.82]
[1755463343823,3.76064571,192.02,191.97,2.82]
[1755463344023,2.77,192.01,191.97,2.82]
[1755463345424,3.76320409,192.0,191.91,2.86]
[1755463345731,2.77,191.98,191.91,2.86]
[1755463346028,2.77,191.98,191.94,0.03516103]
[1755463346329,2.77,191.98,191.94,2.89516103]
[1755463346827,2.77,191.98,191.94,0.03516103]
[1755463347025,2.77,191.98,191.94,2.89516103]
[1755463347829,2.77,191.98,191.94,0.03516103]
[1755463348430,3.76824271,191.97,191.94,0.03516103]
[1755463348631,2.77,191.96,191.94,0.03516103]
[1755463348829,2.77,191.95,191.94,0.03516103]
[1755463349030,3.76866616,191.95,191.94,0.03516103]
[1755463349231,6.53866616,191.95,191.94,0.03516103]
[1755463350228,10.97320468,191.95,191.94,0.03516103]
[1755463350428,10.97320468,191.95,191.94,2.89516103]
[1755463350829,10.97320468,191.95,191.94,0.03516103]
[1755463352131,10.97320468,191.95,191.94,2.89516103]
[1755463353231,6.53866616,191.95,191.94,2.89516103]
[1755463353428,8.21052244,191.95,191.94,2.89516103]
[1755463353637,3.76866616,191.95,191.94,2.89516103]
[1755463354434,3.76866616,191.95,191.94,4.59648017]
[1755463355837,2.77,191.97,191.94,1.73648017]
[1755463356036,3.77730961,191.96,191.95,2.86]
[1755463357940,8.22054444,191.96,191.94,2.89516103]
[1755463358139,6.54730961,191.95,191.94,2.89516103]
[1755463359136,3.77730961,191.95,191.94,2.89516103]
[1755463359936,2.77,191.95,191.94,2.89516103]
[1755463360137,6.54730961,191.95,191.94,2.89516103]
[1755463360637,2.77,191.95,191.94,2.89516103]
[1755463360834,126.24,191.99,191.94,2.89516103]
[1755463361038,2.77,191.97,191.95,2.86]
[1755463361338,6.54871687,191.96,191.95,2.86]
[1755463361936,3.77871687,191.96,191.95,2.86]
[1755463362138,2.77,191.98,191.95,2.86]
[1755463362438,3.77829308,191.97,191.95,2.86]
[1755463362739,126.24,191.99,191.95,2.86]
[1755463362940,8.2214687,191.98,191.95,2.86]
[1755463363236,3.77817144,191.97,191.95,2.86]
[1755463363434,129.01,191.99,191.95,2.86]
[1755463363634,8.22209136,191.98,191.95,2.86]
[1755463363832,3.77858635,191.97,191.95,2.86]
[1755463364030,129.01,191.99,191.95,2.86]
[1755463364232,8.2222867,191.98,191.95,2.86]
[1755463364440,3.77858526,191.97,191.95,2.86]
[1755463364736,2.77,191.98,191.95,2.86]
[1755463365040,3.77887048,191.97,191.95,2.86]
[1755463365339,2.77,191.98,191.95,2.86]
[1755463365639,3.7790381,191.97,191.95,2.86]
[1755463365835,2.77,191.98,191.95,2.86]
[1755463369035,3.77898901,191.97,191.95,2.86]
[1755463369340,2.77,191.98,191.95,2.86]
[1755463369537,3.77921668,191.97,191.95,2.86]
[1755463369738,2.77,191.98,191.95,2.86]
[1755463369938,3.77921668,191.97,191.95,2.86]
[1755463370140,2.77,191.98,191.95,2.86]
[1755463370334,3.77927565,191.97,191.95,2.86]
[1755463370530,2.77,191.98,191.95,2.86]
[1755463370834,3.77946192,191.97,191.95,2.86]
[1755463371034,3.02,191.97,191.95,2.86]
[1755463371834,3.02,191.98,191.95,2.86]
[1755463372035,3.02,191.96,191.94,0.03516103]
[1755463372340,3.02,191.98,191.94,0.03516103]
[1755463372542,3.02,191.96,191.95,2.99]
[1755463373246,3.02,191.98,191.95,2.99]
[1755463373441,6.80038959,191.97,191.95,2.99]
[1755463373641,3.02,191.97,191.95,2.99]
[1755463373938,129.26,191.99,191.95,2.99]
[1755463374242,6.80035021,191.98,191.95,2.99]
[1755463374442,3.78035021,191.97,191.95,2.99]
[1755463376146,3.02,191.96,191.95,2.99]
[1755463381546,3.02,192.03,191.95,2.99]
[1755463381750,3.02,192.01,191.95,2.99]
[1755463381947,126.2,192.04,191.95,2.99]
[1755463381948,8.23190619,192.0,191.95,2.99]
[1755463382247,6.80342442,191.99,191.95,2.99]
[1755463382447,3.02,191.99,191.95,2.99]
[1755463384349,3.02,191.98,191.95,2.99]
[1755463386550,3.02,192.03,191.95,2.99]
[1755463386848,3.02,192.01,191.95,2.99]
[1755463387050,3.78249699,192.0,191.95,2.99]
[1755463387249,3.02,192.02,191.95,2.99]
[1755463387444,3.02,192.0,191.95,2.99]
[1755463390351,3.02,192.0,191.97,2.99]
[1755463390855,3.02,192.0,191.98,2.99]
[1755463391854,3.02,192.0,191.96,4.6909263]
[1755463392055,3.02,192.0,191.97,2.99]
[1755463393555,3.02,192.0,191.96,4.6909263]
[1755463393957,3.02,191.98,191.96,4.6909263]
[1755463395860,3.02,191.98,191.95,3.02479891]
[1755463396962,3.02,191.96,191.95,0.03479891]
[1755463397763,3.02,191.96,191.95,2.85479891]
[1755463398872,3.02,191.96,191.95,0.03479891]
[1755463399076,3.02,191.96,191.95,2.85479891]
[1755463401073,1.7009263,192.02,191.95,2.85479891]
[1755463401074,2.99,192.02,191.95,2.85479891]
[1755463401276,6.77396599,192.01,192.0,4.5209263]
[1755463403478,2.99,192.01,192.0,4.5209263]
[1755463404274,2.99,192.01,192.0,2.82]
[1755463404575,6.77293526,192.01,192.0,2.82]
[1755463408879,2.99,192.01,192.0,2.82]
[1755463410972,6.77278012,192.01,192.0,2.82]
[1755463417276,2.99,192.01,192.0,2.82]
[1755463419681,6.77334022,192.01,192.0,2.82]
[1755463422573,6.77334022,192.01,191.99,0.03424316]
[1755463422778,6.77334022,192.0,191.99,0.03424316]
[1755463422978,6.77334022,192.0,191.99,2.85424316]
[1755463426385,6.77334022,192.0,191.99,4.55454921]
[1755463437688,3.78334022,192.0,191.99,4.55454921]
[1755463437890,3.0,192.02,191.99,4.55454921]
[1755463438091,11.18309995,192.01,192.0,2.98]
[1755463438292,11.18309995,192.01,192.0,4.68030605]
[1755463439597,6.78584921,192.01,192.0,4.68030605]
[1755463440886,3.78584921,192.01,192.0,4.68030605]
[1755463441497,3.0,192.02,192.0,4.68030605]
[1755463441795,3.0,192.02,192.01,2.98]
[1755463442291,7.39809128,192.02,192.01,2.98]
[1755463443197,7.39978607,192.02,192.01,2.98]
[1755463449298,7.40354187,192.02,192.01,2.98]
[1755463452606,7.40315371,192.02,192.01,2.98]
[1755463453396,7.40315371,192.02,192.01,4.68030605]
[1755463453599,11.16620351,192.02,192.01,4.68030605]
[1755463456008,11.16620351,192.02,192.01,2.98]
[1755463456197,8.16620351,192.02,192.01,1.70030605]
[1755463456397,8.16620351,192.02,192.01,4.68030605]
[1755463456706,11.16620351,192.02,192.01,4.68030605]
[1755463461712,11.16590958,192.02,192.01,4.68030605]
[1755463462213,11.1658841,192.02,192.01,4.68030605]
[1755463469516,3.7630498,192.02,192.01,4.68030605]
[1755463469719,6.7030498,192.02,192.01,4.68030605]
[1755463470818,3.7630498,192.02,192.01,4.68030605]
[1755463471725,6.7030498,192.02,192.01,4.68030605]
[1755463472535,6.7030498,192.02,192.01,2.98]
[1755463472720,6.7030498,192.02,192.01,4.68030605]
[1755463473521,3.7630498,192.02,192.01,4.68030605]
[1755463474328,6.7030498,192.02,192.01,4.68030605]
[1755463475427,3.7630498,192.02,192.01,4.68030605]
[1755463476025,6.7030498,192.02,192.01,4.68030605]
[1755463483633,2.94,192.02,192.01,4.68030605]
[1755463484535,6.70226153,192.02,192.01,4.68030605]
[1755463492636,3.06,192.08,192.02,2.9]
[1755463492942,3.06,192.06,192.05,1.70030605]
[1755463493139,7.4491075,192.06,192.05,1.70030605]
[1755463494644,4.3891075,192.06,192.04,0.03966746]
[1755463494842,7.4491075,192.05,192.04,0.03966746]
[1755463498537,3.06,192.05,192.04,0.03966746]
[1755463498738,7.44974804,192.05,192.04,0.03966746]
[1755463498936,7.44974804,192.05,192.04,2.93966746]
[1755463501254,7.44943427,192.05,192.04,2.93966746]
[1755463501551,7.44948412,192.05,192.04,2.93966746]
[1755463503656,7.44945665,192.05,192.04,2.93966746]
[1755463504556,11.19333168,192.05,192.04,2.93966746]
[1755463505454,11.19291407,192.05,192.04,0.03966746]
[1755463505957,11.19291407,192.05,192.04,2.93966746]
[1755463506445,11.19291407,192.05,192.04,0.03966746]
[1755463506653,6.80345742,192.05,192.04,0.03966746]
[1755463506852,11.19321234,192.05,192.04,0.03966746]
[1755463508257,11.19321234,192.05,192.04,2.93966746]
[1755463512256,11.19321234,192.05,192.04,0.03966746]
[1755463515565,11.19321234,192.05,192.04,2.93966746]
[1755463515865,6.80345742,192.05,192.04,2.93966746]
[1755463516066,11.19710393,192.05,192.04,2.93966746]
[1755463516571,11.19710714,192.05,192.04,2.93966746]
[1755463524976,11.19710714,192.05,192.04,0.03966746]
[1755463525170,11.19708314,192.05,192.04,0.03966746]
[1755463527370,11.19708314,192.05,192.04,2.89966746]
[1755463528871,11.22101512,192.05,192.04,2.89966746]
[1755463534378,6.80345742,192.05,192.04,2.89966746]
[1755463534584,11.22104838,192.05,192.04,0.03966746]
[1755463537480,6.80345742,192.05,192.04,0.03966746]
[1755463537686,11.22105989,192.05,192.04,0.03966746]
[1755463538685,11.22105989,192.05,192.04,2.89966746]
[1755463540488,11.22131322,192.05,192.04,2.89966746]
[1755463542886,11.22131322,192.05,192.04,0.03966746]
[1755463543190,13.89224752,192.05,192.04,0.03966746]
[1755463543484,6.80345742,192.05,192.04,0.03966746]
[1755463543689,13.89088299,192.05,192.04,0.03966746]
[1755463551195,141.59118904,192.05,192.04,0.03966746]
[1755463551795,139.89088299,192.05,192.04,0.03966746]
[1755463551990,141.59118904,192.05,192.04,0.03966746]
[1755463552199,139.89088299,192.05,192.04,0.03966746]
[1755463552588,142.55838542,192.05,192.04,0.03966746]
[1755463552794,137.21583335,192.05,192.04,0.03966746]
[1755463553094,139.88203671,192.05,192.04,0.03966746]
[1755463553598,137.21583335,192.05,192.04,0.03966746]
[1755463553795,139.88171904,192.05,192.04,0.03966746]
[1755463555200,139.88171904,192.05,192.04,2.89966746]
[1755463555901,137.21583335,192.05,192.04,2.89966746]
[1755463556100,139.88120959,192.05,192.04,2.89966746]
[1755463558504,136.82120959,192.05,192.04,0.03966746]
[1755463558697,139.64120959,192.05,192.04,2.89966746]
[1755463559000,139.73245428,192.05,192.04,0.03966746]
[1755463560002,139.7291836,192.05,192.04,2.89966746]
[1755463560204,139.7291836,192.05,192.04,0.03966746]
[1755463560604,139.7291836,192.05,192.04,2.89966746]
[1755463561205,135.22521681,192.05,192.04,2.89966746]
[1755463561402,139.72884038,192.05,192.04,2.89966746]
[1755463561807,135.22508922,192.05,192.04,2.89966746]
[1755463562008,139.72884038,192.05,192.04,0.03966746]
[1755463562306,139.72879267,192.05,192.04,0.03966746]
[1755463564914,2.82,192.04,191.94,2.86]
[1755463565112,1.70030605,191.98,191.94,2.86]
[1755463565412,137.04390793,191.97,191.94,2.86]
[1755463565599,128.8,191.97,191.94,2.86]
[1755463565806,128.8,191.97,191.92,2.86]
[1755463565999,6.56350678,191.96,191.92,2.86]
[1755463566202,2.82,191.94,191.89,1.70030605]
[1755463566402,2.82,191.94,191.9,2.86]
[1755463569511,126.0,191.95,191.9,2.86]
[1755463569707,128.82,191.95,191.92,2.86]
[1755463570512,128.85852584,191.95,191.92,2.86]
[1755463571212,2.85852584,191.95,191.92,2.86]
[1755463571911,2.82,191.94,191.92,2.86]
[1755463572113,2.82,191.93,191.92,2.86]
[1755463573210,2.82,191.93,191.86,2.86]
[1755463573415,2.82,191.91,191.87,2.86]
[1755463573905,2.82,191.89,191.88,2.86]
[1755463574607,2.82,191.9,191.85,2.86]
[1755463575616,2.82,191.86,191.81,2.86]
[1755463575816,2.82,191.85,191.8,2.86]
[1755463576517,0.03423002,191.84,191.8,2.86]
[1755463576719,2.82,191.83,191.8,2.86]
[1755463581517,2.87423002,191.84,191.8,2.86]
[1755463582823,2.84,191.83,191.8,2.86]
[1755463585825,0.03423002,191.84,191.8,2.86]
[1755463586031,2.84,191.82,191.8,2.86]
[1755463590735,2.84,191.81,191.76,1.70030605]
[1755463590941,2.84,191.81,191.74,5.212]
[1755463590942,2.84,191.8,191.78,2.84]
[1755463592141,1.70030605,191.79,191.73,2.84]
[1755463592340,2.84,191.78,191.73,2.84]
[1755463594743,2.84,191.78,191.73,4.54030605]
[1755463595044,2.84,191.78,191.74,2.84]
[1755463597348,2.84,191.76,191.71,2.84]
[1755463598143,2.84,191.74,191.72,2.84]
[1755463601353,2.84,191.73,191.72,2.84]
[1755463601852,2.84,191.74,191.69,2.84]
[1755463602056,1.70030605,191.74,191.69,2.84]
[1755463602255,2.84,191.73,191.69,2.84]
[1755463603057,2.84,191.73,191.7,2.84]
[1755463603447,1.70030605,191.72,191.65,1.70030605]
[1755463603648,2.84,191.71,191.66,2.84]
[1755463605660,2.84,191.71,191.62,133.96152849]
[1755463605852,2.84,191.71,191.67,2.84]
[1755463609558,4.47458463,191.7,191.67,2.84]
[1755463609756,2.98,191.71,191.61,2.79]
[1755463609953,4.47458463,191.7,191.61,2.79]
[1755463610159,2.98,191.69,191.61,2.79]
[1755463610358,7.4560803,191.68,191.61,2.79]
[1755463610553,4.4745189,191.67,191.61,2.79]
[1755463610756,2.98,191.66,191.61,2.79]
[1755463611160,2.98,191.66,191.62,0.03512073]
[1755463611359,0.03664433,191.65,191.63,2.79]
[1755463611562,2.98,191.63,191.62,0.03512073]
[1755463612054,2.98,191.63,191.62,2.82512073]
[1755463613850,2.98,191.63,191.62,0.03512073]
[1755463614162,2.98,191.63,191.62,2.82512073]
[1755463615961,2.98,191.63,191.62,0.03512073]
[1755463616260,2.98,191.63,191.62,2.82512073]
[1755463618464,7.45480041,191.63,191.62,2.82512073]
[1755463619265,2.98,191.63,191.62,2.82512073]
[1755463619670,7.45571472,191.63,191.62,2.82512073]
[1755463622261,4.47571472,191.63,191.62,2.82512073]
[1755463622461,3.01664433,191.65,191.62,2.82512073]
[1755463622662,7.45420111,191.64,191.62,2.82512073]
[1755463622861,2.98,191.64,191.62,2.82512073]
[1755463623167,0.03664433,191.65,191.62,2.82512073]
[1755463623168,2.98,191.63,191.62,2.82512073]
[1755463629371,2.98,191.64,191.62,2.82512073]
[1755463629562,0.03664433,191.65,191.63,2.79]
[1755463630169,3.01664433,191.65,191.63,2.79]
[1755463631171,0.03664433,191.65,191.63,2.79]
[1755463632877,3.01664433,191.65,191.63,2.79]
[1755463634673,0.03664433,191.65,191.63,2.79]
[1755463637682,3.01664433,191.65,191.63,2.79]
[1755463640872,2.94,191.64,191.63,2.79]
[1755463646185,2.97664433,191.65,191.63,2.79]
[1755463647285,2.94,191.64,191.63,2.79]
[1755463653596,0.03664433,191.65,191.63,4.35522662]
[1755463653792,0.03664433,191.65,191.64,2.81]
[1755463654589,2.97664433,191.65,191.64,2.81]
[1755463660590,0.03664433,191.65,191.64,2.81]
[1755463660890,2.97664433,191.65,191.64,2.81]
[1755463663400,2.94,191.68,191.64,2.81]
[1755463663694,2.94,191.68,191.67,4.37522662]
[1755463665693,1.56522662,191.75,191.67,4.37522662]
[1755463665993,2.94,191.73,191.68,2.81]
[1755463666292,2.94,191.71,191.68,2.81]
[1755463667596,2.84,191.74,191.68,3.02]
[1755463667795,2.84,191.72,191.68,3.02]
[1755463670995,2.84,191.72,191.69,3.02]
[1755463671998,2.84,191.74,191.68,3.02]
[1755463672188,8.19597071,191.73,191.68,3.02]
[1755463672395,8.19597071,191.72,191.69,3.02]
[1755463672692,2.84,191.71,191.69,3.02]
[1755463673600,2.84,191.71,191.7,3.02]
[1755463674800,7.35618533,191.71,191.7,3.02]
[1755463675103,2.84,191.71,191.7,3.02]
[1755463685810,2.84,191.71,191.68,0.03559977]
[1755463686013,2.84,191.71,191.69,3.02]
[1755463686309,2.84,191.71,191.7,3.02]
[1755463689508,6.55915835,191.71,191.7,3.02]
[1755463692113,11.04712023,191.71,191.7,3.02]
[1755463692414,6.55915835,191.71,191.7,3.02]
[1755463693214,11.04746184,191.71,191.7,3.02]
[1755463694514,132.00375388,191.78,191.7,3.02]
[1755463694515,1.56522662,191.77,191.7,3.02]
[1755463694714,2.84,191.75,191.72,3.02]
[1755463694916,2.84,191.73,191.72,3.02]
[1755463695208,2.84,191.73,191.72,3.05593292]
[1755463698814,6.63117044,191.73,191.72,3.05593292]
[1755463700422,2.91,191.73,191.72,3.05593292]
[1755463702015,6.63145231,191.73,191.72,3.05593292]
[1755463702213,11.12123186,191.73,191.72,3.05593292]
[1755463704423,11.12123186,191.73,191.72,0.03593292]
[1755463704625,12.68645848,191.73,191.72,0.03593292]
[1755463706022,8.19667893,191.73,191.72,0.03593292]
[1755463706224,12.68861042,191.73,191.72,3.03593292]
[1755463706422,11.1233838,191.73,191.72,3.03593292]
[1755463706619,11.12376187,191.73,191.72,3.03593292]
[1755463706926,11.12378245,191.73,191.72,3.03593292]
[1755463713433,2.91,191.73,191.72,3.03593292]
[1755463714630,7.41367269,191.73,191.72,3.03593292]